bitfinex-derivatives/quotes_BTCF0:USTF0_20250416
["timestamp","ask_amount","ask_price","bid_price","bid_amount"]
[1744797961958,0.8711139,83749.0,83748.0,0.03337914]
[1744797965150,0.9339139,83749.0,83748.0,0.03337914]
[1744797966366,0.9339139,83749.0,83716.0,0.18219194]
[1744797966367,0.1194296,83738.0,83733.0,0.000108]
[1744797966658,0.1194296,83738.0,83731.0,0.00513546]
[1744797966659,0.0597163,83736.0,83731.0,0.00513546]
[1744797966959,0.1194424,83729.0,83728.0,0.0324]
[1744797967161,0.4802424,83729.0,83728.0,0.0324]
[1744797967459,0.5422424,83729.0,83728.0,0.0324]
[1744797967860,0.1194481,83725.0,83724.0,0.0001458]
[1744797968060,0.4802481,83725.0,83724.0,0.0001458]
[1744797968362,0.1194539,83721.0,83720.0,0.00017914]
[1744797968863,0.1499539,83721.0,83720.0,0.00017914]
[1744797969159,0.1499539,83721.0,83720.0,0.00025914]
[1744797969655,0.16163284,83721.0,83720.0,0.00025914]
[1744797971254,0.16163284,83721.0,83720.0,0.00017914]
[1744797971459,0.16363284,83721.0,83720.0,0.00025914]
[1744797971658,0.52443284,83721.0,83720.0,0.00025914]
[1744797972057,0.52443284,83721.0,83720.0,0.03035914]
[1744797974965,0.1194581,83718.0,83717.0,0.000108]
[1744797975167,0.1194753,83706.0,83705.0,0.00513706]
[1744797975465,0.4802753,83706.0,83705.0,0.00513706]
[1744797975953,0.4802753,83706.0,83705.0,0.00533389]
[1744797976160,0.5107753,83706.0,83705.0,0.00513706]
[1744797976560,0.5107753,83706.0,83705.0,0.00521706]
[1744797976766,0.5107753,83706.0,83705.0,0.12961376]
[1744797976964,0.5107753,83706.0,83705.0,0.13869064]
[1744797977664,0.5107753,83706.0,83705.0,0.01921394]
[1744797977964,0.5107753,83706.0,83705.0,0.13869064]
[1744797978669,0.5107753,83706.0,83705.0,0.20169064]
[1744797979259,0.5107753,83706.0,83705.0,0.08221394]
[1744797979655,0.5107753,83706.0,83705.0,0.20169064]
[1744797980066,0.3608,83706.0,83705.0,0.20169064]
[1744797980455,0.4802753,83706.0,83705.0,0.20169064]
[1744797980655,0.3608,83706.0,83705.0,0.20169064]
[1744797981055,0.3608,83706.0,83705.0,0.21169064]
[1744797981464,0.4802753,83706.0,83705.0,0.21169064]
[1744797982261,0.3608,83706.0,83705.0,0.21169064]
[1744797982462,0.3608,83706.0,83705.0,0.46169064]
[1744797983064,0.4802753,83706.0,83705.0,0.46169064]
[1744797983263,0.4802753,83706.0,83705.0,0.21169064]
[1744797983464,0.3608,83706.0,83705.0,0.21169064]
[1744797983662,0.4802753,83706.0,83705.0,0.21169064]
[1744797984167,0.00017914,83714.0,83713.0,0.1194653]
[1744797984369,0.00017914,83714.0,83713.0,0.6802653]
[1744797984569,0.1195257,83727.0,83726.0,0.1194467]
[1744797984868,0.1194457,83727.0,83726.0,0.1824467]
[1744797985064,0.1195257,83727.0,83726.0,0.1824467]
[1744797985257,8e-05,83727.0,83726.0,0.2224467]
[1744797985458,8e-05,83727.0,83726.0,0.4724467]
[1744797985664,0.3608,83739.0,83738.0,0.1194296]
[1744797985860,0.0597096,83746.0,83742.0,0.0597119]
[1744797986060,0.1194206,83745.0,83744.0,0.1791301]
[1744797986776,0.1194206,83745.0,83744.0,0.2434301]
[1744797987659,0.1194206,83745.0,83744.0,0.2534301]
[1744797988065,0.1195006,83745.0,83744.0,0.2534301]
[1744797988270,0.1205006,83745.0,83744.0,0.2534301]
[1744797989169,0.1205006,83745.0,83744.0,0.2554301]
[1744797989374,0.1523006,83745.0,83744.0,0.1360105]
[1744797990662,0.1523006,83745.0,83744.0,0.0663]
[1744797990972,0.1847006,83745.0,83744.0,0.002]
[1744797991670,0.119431,83737.0,83736.0,0.00025914]
[1744797991976,0.119431,83737.0,83736.0,0.11969164]
[1744797992177,0.119431,83737.0,83736.0,0.11961164]
[1744797992370,0.119431,83737.0,83736.0,0.11969164]
[1744797992564,0.183331,83737.0,83736.0,0.11969164]
[1744797993277,0.183331,83737.0,83736.0,0.12469164]
[1744797993577,0.183331,83737.0,83736.0,0.15759164]
[1744797993974,0.183331,83737.0,83736.0,0.19069164]
[1744797994271,0.150931,83737.0,83736.0,0.19069164]
[1744797994669,0.152931,83737.0,83736.0,0.19069164]
[1744797995277,0.151011,83737.0,83736.0,0.19069164]
[1744797995463,0.153011,83737.0,83736.0,0.19069164]
[1744797996066,0.153011,83737.0,83736.0,0.18569164]
[1744797996262,0.154011,83737.0,83736.0,0.18569164]
[1744797996673,0.153011,83737.0,83736.0,0.18569164]
[1744798000069,0.153011,83737.0,83736.0,0.18561164]
[1744798000070,0.152931,83737.0,83736.0,0.18561164]
[1744798000475,0.152931,83737.0,83736.0,0.18577164]
[1744798000679,0.15334479,83737.0,83736.0,0.18577164]
[1744798002279,0.00241379,83737.0,83736.0,0.18577164]
[1744798002482,0.00241379,83737.0,83736.0,0.20577164]
[1744798002672,0.00233379,83737.0,83736.0,0.20577164]
[1744798002982,0.00241379,83737.0,83736.0,0.20577164]
[1744798003284,0.12184479,83737.0,83736.0,0.20577164]
[1744798003576,0.12184479,83737.0,83736.0,0.56657164]
[1744798003882,0.00041379,83737.0,83736.0,0.81657164]
[1744798004082,0.00033379,83737.0,83736.0,0.82657164]
[1744798004288,0.00033379,83737.0,83736.0,0.57657164]
[1744798004483,0.00041379,83737.0,83736.0,0.57657164]
[1744798005084,8e-05,83737.0,83736.0,0.57657164]
[1744798005480,0.1194231,83743.0,83742.0,0.1194239]
[1744798005787,0.1194231,83743.0,83742.0,0.1602239]
[1744798006586,0.11975689,83743.0,83742.0,0.1602239]
[1744798006884,0.12175689,83743.0,83742.0,0.1602239]
[1744798007084,0.15205689,83743.0,83742.0,0.1602239]
[1744798009376,0.18465689,83743.0,83742.0,0.1602239]
[1744798009989,0.1843231,83743.0,83742.0,0.1602239]
[1744798010476,0.15205689,83743.0,83742.0,0.1602239]
[1744798010675,0.03263379,83743.0,83742.0,0.1602239]
[1744798011080,0.15205629,83743.0,83742.0,0.1602239]
[1744798014588,0.03263379,83743.0,83742.0,0.1602239]
[1744798015691,0.15205629,83743.0,83742.0,0.1602239]
[1744798016083,0.18465629,83743.0,83742.0,0.1602239]
[1744798016481,0.15205629,83743.0,83742.0,0.1602239]
[1744798018580,0.03263379,83743.0,83742.0,0.1602239]
[1744798018987,0.15205629,83743.0,83742.0,0.1602239]
[1744798023690,0.15205629,83743.0,83742.0,0.1294239]
[1744798023890,0.21385629,83743.0,83742.0,0.1294239]
[1744798026089,0.21385629,83743.0,83742.0,0.1952239]
[1744798029584,0.09443379,83743.0,83742.0,0.1952239]
[1744798029789,0.03263379,83743.0,83742.0,0.1952239]
[1744798030187,0.03271379,83743.0,83742.0,0.1952239]
[1744798031590,0.00241379,83743.0,83742.0,0.2152239]
[1744798031788,0.00233379,83743.0,83742.0,0.4652239]
[1744798031987,0.00241379,83743.0,83742.0,0.4652239]
[1744798032182,0.00233379,83743.0,83742.0,0.4652239]
[1744798032983,0.00041379,83743.0,83742.0,0.4682239]
[1744798034304,0.00041379,83743.0,83742.0,0.2182239]
[1744798035096,0.00033379,83743.0,83742.0,0.2182239]
[1744798035592,0.00041379,83743.0,83742.0,0.2182239]
[1744798038788,0.00041379,83743.0,83742.0,0.1524239]
[1744798039098,0.00041379,83743.0,83742.0,0.1324239]
[1744798039901,0.11983629,83743.0,83742.0,0.1224239]
[1744798040405,0.21563629,83743.0,83742.0,0.1224239]
[1744798040901,0.21563629,83743.0,83742.0,0.003]
[1744798042097,0.1194253,83741.0,83740.0,0.00016]
[1744798042305,0.119431,83737.0,83736.0,0.00017914]
[1744798042996,0.119431,83737.0,83736.0,0.11961164]
[1744798043399,0.121431,83737.0,83736.0,0.00017914]
[1744798044508,0.482231,83737.0,83736.0,0.00017914]
[1744798045406,0.48256479,83737.0,83736.0,0.00017914]
[1744798045608,0.48256479,83737.0,83736.0,0.11961164]
[1744798046705,0.12176479,83737.0,83736.0,0.11961164]
[1744798048001,0.18746479,83737.0,83736.0,0.11961164]
[1744798048209,0.18754479,83737.0,83736.0,0.11961164]
[1744798049903,0.187211,83737.0,83736.0,0.11961164]
[1744798050103,0.187131,83737.0,83736.0,0.11961164]
[1744798050503,0.18746479,83737.0,83736.0,0.11961164]
[1744798051111,0.18754479,83737.0,83736.0,0.11961164]
[1744798052609,0.18754479,83737.0,83736.0,0.18601164]
[1744798052809,0.18746479,83737.0,83736.0,0.18601164]
[1744798053017,0.18754479,83737.0,83736.0,0.18601164]
[1744798053214,0.18746479,83737.0,83736.0,0.18601164]
[1744798053818,0.18754479,83737.0,83736.0,0.11961164]
[1744798054905,0.18746479,83737.0,83736.0,0.11961164]
[1744798055109,0.187131,83737.0,83736.0,0.11961164]
[1744798055416,0.18746479,83737.0,83736.0,0.11961164]
[1744798058114,0.18746479,83737.0,83736.0,0.00017914]
[1744798058305,0.18746479,83737.0,83736.0,0.11961164]
[1744798058510,0.18746479,83737.0,83736.0,0.00017914]
[1744798058715,0.18746479,83737.0,83736.0,0.00025914]
[1744798059020,0.1194367,83733.0,83732.0,0.3608]
[1744798059417,0.1803367,83733.0,83732.0,0.36088]
[1744798060105,0.1803367,83733.0,83732.0,0.3608]
[1744798060422,0.18175049,83733.0,83732.0,0.3608]
[1744798060720,0.1194481,83725.0,83724.0,0.00017914]
[1744798061109,0.5434481,83725.0,83724.0,0.00025914]
[1744798061311,0.119461,83716.0,83715.0,0.000108]
[1744798061508,0.119461,83716.0,83715.0,0.070108]
[1744798061707,0.480261,83716.0,83715.0,0.07]
[1744798061915,0.480261,83716.0,83715.0,0.07008]
[1744798062213,0.543461,83716.0,83715.0,0.07]
[1744798062415,0.543461,83716.0,83715.0,0.07008]
[1744798062815,0.543461,83716.0,83715.0,0.07408]
[1744798063426,0.543461,83716.0,83715.0,0.07108]
[1744798063610,0.543461,83716.0,83715.0,0.071]
[1744798064218,0.543461,83716.0,83715.0,0.001]
[1744798064419,0.543461,83716.0,83715.0,0.00108]
[1744798065011,0.543461,83716.0,83715.0,0.001]
[1744798066618,0.182661,83716.0,83715.0,0.001]
[1744798066822,0.543461,83716.0,83715.0,0.001]
[1744798074937,0.543461,83716.0,83707.0,0.03317914]
[1744798075136,0.1194724,83708.0,83707.0,0.00017914]
[1744798075625,0.1816724,83708.0,83707.0,0.00017914]
[1744798075821,0.5424724,83708.0,83707.0,0.00017914]
[1744798076535,0.5424724,83708.0,83707.0,0.00317914]
[1744798076736,0.1194753,83706.0,83705.0,0.01413394]
[1744798076934,0.1194753,83706.0,83705.0,0.00513706]
[1744798077124,0.1194938,83693.0,83692.0,0.0624]
[1744798078634,0.1510938,83693.0,83692.0,0.0644]
[1744798079349,0.1510938,83693.0,83692.0,0.1838952]
[1744798080032,0.1510938,83693.0,83692.0,0.1908952]
[1744798080536,0.1833938,83693.0,83692.0,0.1908952]
[1744798081038,0.1833938,83693.0,83692.0,0.20002909]
[1744798081533,0.19550925,83693.0,83692.0,0.20002909]
[1744798085736,0.19550925,83693.0,83692.0,0.08053389]
[1744798085938,0.16320925,83693.0,83692.0,0.08053389]
[1744798086929,0.16320925,83693.0,83692.0,0.08061389]
[1744798089534,0.22610925,83693.0,83692.0,0.08061389]
[1744798089740,0.22610925,83693.0,83692.0,0.08053389]
[1744798089937,0.22610925,83693.0,83692.0,0.08061389]
[1744798095644,0.22610925,83693.0,83692.0,0.04851389]
[1744798097038,0.22610925,83693.0,83692.0,0.01821389]
[1744798097931,0.58690925,83693.0,83692.0,0.01821389]
[1744798101249,0.0597491,83690.0,83684.0,0.00017914]
[1744798101446,0.1195052,83685.0,83684.0,0.08017914]
[1744798101858,0.1822052,83685.0,83684.0,0.08017914]
[1744798102550,0.1822052,83685.0,83684.0,0.08025914]
[1744798102749,0.1822052,83685.0,83684.0,0.08825914]
[1744798103143,0.1822052,83685.0,83684.0,0.08925914]
[1744798103344,0.5430052,83685.0,83684.0,0.08925914]
[1744798103845,0.5430052,83685.0,83684.0,0.08825914]
[1744798104050,0.5430052,83685.0,83684.0,0.09025914]
[1744798104449,0.5430052,83685.0,83684.0,0.09941448]
[1744798104648,0.5430052,83685.0,83684.0,0.21892118]
[1744798106340,0.5430052,83685.0,83684.0,0.09941448]
[1744798106654,0.5430052,83685.0,83684.0,0.21892118]
[1744798107354,0.5430052,83685.0,83684.0,0.09910448]
[1744798107547,0.5430052,83685.0,83684.0,0.21861118]
[1744798108750,0.5430052,83685.0,83684.0,0.09910448]
[1744798111666,0.5430052,83685.0,83684.0,0.08994914]
[1744798112675,0.5430052,83685.0,83684.0,0.08986914]
[1744798112861,0.5430052,83685.0,83684.0,0.08994914]
[1744798113066,0.5430052,83685.0,83684.0,0.08986914]
[1744798113265,0.5430052,83685.0,83684.0,0.08994914]
[1744798116382,0.09015545,83693.0,83686.0,0.0597514]
[1744798116579,0.031,83692.0,83691.0,0.1194967]
[1744798116766,0.1194939,83693.0,83692.0,0.1792414]
[1744798116966,0.1504939,83693.0,83692.0,0.1792414]
[1744798117172,0.1504938,83693.0,83692.0,0.1792414]
[1744798118562,0.1504938,83693.0,83692.0,0.1902414]
[1744798119273,0.1504938,83693.0,83692.0,0.2260414]
[1744798119672,0.00017914,83701.0,83700.0,0.1194838]
[1744798119876,0.00017914,83701.0,83700.0,0.6302838]
[1744798120072,0.00017914,83701.0,83700.0,0.6620838]
[1744798120775,0.00017914,83701.0,83700.0,0.68414973]
[1744798120975,0.00117914,83701.0,83700.0,0.6720838]
[1744798121368,0.00117914,83701.0,83700.0,0.6730838]
[1744798126881,0.11956531,83719.0,83706.0,0.0597376]
[1744798127176,0.00049379,83723.0,83716.0,0.0597297]
[1744798127384,0.00049379,83723.0,83722.0,0.1194524]
[1744798127583,0.00049379,83723.0,83722.0,0.2594524]
[1744798127766,0.00049379,83723.0,83722.0,0.2921524]
[1744798127968,0.12002479,83723.0,83722.0,0.2921524]
[1744798128276,0.12002479,83723.0,83722.0,0.3244524]
[1744798128482,0.12602479,83723.0,83722.0,0.3244524]
[1744798129581,0.12702479,83723.0,83722.0,0.3244524]
[1744798130067,0.16012479,83723.0,83722.0,0.3244524]
[1744798130267,0.19092479,83723.0,83722.0,0.3244524]
[1744798130467,0.18392479,83723.0,83722.0,0.3244524]
[1744798130678,0.18492479,83723.0,83722.0,0.3244524]
[1744798134973,0.184351,83723.0,83722.0,0.3244524]
[1744798135376,0.18503279,83723.0,83722.0,0.3244524]
[1744798137977,0.18503279,83723.0,83722.0,0.2921524]
[1744798138590,0.21733279,83723.0,83722.0,0.2921524]
[1744798138773,0.21733279,83723.0,83722.0,0.14]
[1744798138979,0.57813279,83723.0,83722.0,0.14]
[1744798139176,0.57813279,83723.0,83722.0,0.2595324]
[1744798139378,0.57813279,83723.0,83722.0,0.1195324]
[1744798140186,0.577451,83723.0,83722.0,0.1194524]
[1744798140585,0.57813279,83723.0,83722.0,0.1194524]
[1744798140786,0.21733279,83723.0,83722.0,0.1194524]
[1744798140989,0.21733279,83723.0,83722.0,0.1520524]
[1744798141187,0.21741279,83723.0,83722.0,0.1520524]
[1744798141378,0.21741279,83723.0,83722.0,0.1194524]
[1744798144976,0.216731,83723.0,83722.0,0.1194524]
[1744798145582,0.216651,83723.0,83722.0,0.1623524]
[1744798145880,0.21741279,83723.0,83722.0,0.1623524]
[1744798146279,0.06566179,83723.0,83722.0,0.1623524]
[1744798146577,0.06558179,83723.0,83722.0,0.1623524]
[1744798146885,0.06558179,83723.0,83722.0,0.2277524]
[1744798147083,0.18511279,83723.0,83722.0,0.2277524]
[1744798147276,0.06566179,83723.0,83722.0,0.23959464]
[1744798147478,0.00176179,83723.0,83722.0,0.2377524]
[1744798147680,0.00168179,83723.0,83722.0,0.2377524]
[1744798147880,0.00176179,83723.0,83722.0,0.2377524]
[1744798150085,0.001,83723.0,83722.0,0.2377524]
[1744798150287,0.001,83723.0,83722.0,0.1723524]
[1744798150604,0.00168179,83723.0,83722.0,0.1624324]
[1744798151694,0.15383279,83723.0,83722.0,0.1624324]
[1744798151895,0.15383279,83723.0,83722.0,0.1295324]
[1744798152083,0.0597269,83721.0,83717.0,0.0597297]
[1744798152285,0.1194581,83718.0,83717.0,0.1791854]
[1744798152685,0.1839581,83718.0,83717.0,0.1791854]
[1744798152988,0.1839581,83718.0,83717.0,0.1792934]
[1744798154790,0.1839581,83718.0,83717.0,0.1802934]
[1744798155095,0.19608741,83718.0,83717.0,0.1801854]
[1744798155292,0.19608741,83718.0,83717.0,0.1792654]
[1744798155499,0.19808741,83718.0,83717.0,0.1792654]
[1744798155695,0.1859581,83718.0,83717.0,0.1792654]
[1744798156386,0.18671989,83718.0,83717.0,0.1792654]
[1744798157697,0.18671989,83718.0,83717.0,0.1791854]
[1744798157999,0.18671989,83718.0,83717.0,0.1792654]
[1744798160494,0.1859581,83718.0,83717.0,0.1791854]
[1744798161000,0.18671989,83718.0,83717.0,0.1791854]
[1744798163300,0.18679989,83718.0,83717.0,0.1791854]
[1744798165002,0.1859581,83718.0,83717.0,0.1791854]
[1744798165489,0.18671989,83718.0,83717.0,0.1791854]
[1744798169707,0.1791929,83716.0,83715.0,0.1194617]
[1744798169903,0.0597305,83716.0,83715.0,0.06]
[1744798170408,0.4826305,83716.0,83715.0,0.06008]
[1744798170808,0.1218305,83716.0,83715.0,0.1794624]
[1744798171000,0.1218305,83716.0,83715.0,0.1795424]
[1744798172415,0.1228305,83716.0,83715.0,0.06008]
[1744798173412,0.1218305,83716.0,83715.0,0.06008]
[1744798173714,0.1258305,83716.0,83715.0,0.06008]
[1744798175114,0.1228305,83716.0,83715.0,0.06]
[1744798175313,0.1268305,83716.0,83715.0,0.06]
[1744798175510,0.1268305,83716.0,83715.0,0.1794624]
[1744798175710,0.1268305,83716.0,83715.0,0.2105624]
[1744798176414,0.1268305,83716.0,83715.0,0.1794624]
[1744798176603,0.4876305,83716.0,83715.0,0.06]
[1744798178111,0.4876305,83716.0,83715.0,0.1794624]
[1744798180620,0.4876305,83716.0,83715.0,0.06]
[1744798182920,0.5178305,83716.0,83715.0,0.06]
[1744798184819,0.5178305,83716.0,83715.0,0.1794624]
[1744798185118,0.5178305,83716.0,83715.0,0.2112624]
[1744798185813,0.4876305,83716.0,83715.0,0.2112624]
[1744798194128,0.4876305,83716.0,83715.0,0.0918]
[1744798194524,0.4876305,83716.0,83715.0,0.06]
[1744798198929,0.4876305,83716.0,83704.0,0.3608]
[1744798198930,0.0597377,83706.0,83704.0,0.3608]
[1744798199126,0.2142767,83705.0,83704.0,0.3608]
[1744798199833,0.2142767,83705.0,83704.0,0.4802781]
[1744798200828,0.2142767,83705.0,83704.0,0.5116781]
[1744798201132,0.1838767,83705.0,83704.0,0.5117581]
[1744798201330,0.001,83706.0,83705.0,0.1194767]
[1744798201637,0.001,83706.0,83705.0,0.1930767]
[1744798201837,0.00017914,83713.0,83712.0,0.1194667]
[1744798202032,0.00017914,83713.0,83712.0,0.7438667]
[1744798202626,0.11964444,83713.0,83712.0,0.7438667]
[1744798202830,0.11964444,83713.0,83712.0,0.3212667]
[1744798203029,0.18004444,83713.0,83712.0,0.3212667]
[1744798203236,0.15004444,83713.0,83712.0,0.3212667]
[1744798203442,0.15004444,83713.0,83712.0,0.3531467]
[1744798203636,0.15304444,83713.0,83712.0,0.3531467]
[1744798204138,0.18524444,83713.0,83712.0,0.3619902]
[1744798206843,0.15304444,83713.0,83712.0,0.3619902]
[1744798209943,0.12264444,83713.0,83712.0,0.3619902]
[1744798210947,0.15444444,83713.0,83712.0,0.3619902]
[1744798222047,0.15444444,83713.0,83712.0,0.7227902]
[1744798222358,0.18744444,83713.0,83712.0,0.7227902]
[1744798224255,0.15444444,83713.0,83712.0,0.7227902]
[1744798225657,0.18604444,83713.0,83712.0,0.7227902]
[1744798227160,0.12264444,83713.0,83712.0,0.7227902]
[1744798227352,0.00317914,83713.0,83712.0,0.7227902]
[1744798227552,0.12264444,83713.0,83712.0,0.7227902]
[1744798228560,0.15414444,83713.0,83712.0,0.7227902]
[1744798229058,0.03467914,83713.0,83712.0,0.7227902]
[1744798229760,0.06557914,83713.0,83712.0,0.7227902]
[1744798230662,0.18504444,83713.0,83712.0,0.7227902]
[1744798232163,0.18504444,83713.0,83712.0,0.6909902]
[1744798234766,0.18504444,83713.0,83712.0,0.3301902]
[1744798237467,0.06557914,83713.0,83712.0,0.3301902]
[1744798237666,0.03467914,83713.0,83712.0,0.3624902]
[1744798238762,0.15414444,83713.0,83712.0,0.3624902]
[1744798239868,0.03467914,83713.0,83712.0,0.3624902]
[1744798240274,0.15414444,83713.0,83712.0,0.3624902]
[1744798240973,0.18674444,83713.0,83712.0,0.3624902]
[1744798243180,0.03467914,83713.0,83712.0,0.3624902]
[1744798243784,0.00084179,83717.0,83716.0,0.119461]
[1744798244077,0.00084179,83717.0,83716.0,0.343361]
[1744798244272,0.0322,83728.0,83716.0,0.343361]
[1744798244273,0.0597162,83736.0,83717.0,0.5972948]
[1744798244474,0.12509078,83734.0,83733.0,0.1194367]
[1744798244766,0.005,83734.0,83733.0,0.1594367]
[1744798244972,0.00508,83734.0,83733.0,0.1919367]
[1744798245675,0.005,83734.0,83733.0,0.2562367]
[1744798245877,0.009,83734.0,83733.0,0.2562367]
[1744798246072,0.00908,83734.0,83733.0,0.2562367]
[1744798246273,0.009,83734.0,83733.0,0.2562367]
[1744798246578,0.00508,83734.0,83733.0,0.2562367]
[1744798246774,0.00017914,83742.0,83733.0,0.2562367]
[1744798246775,0.0333,83740.0,83739.0,0.1194282]
[1744798246979,0.0333,83740.0,83739.0,0.6602282]
[1744798247176,0.00017914,83742.0,83741.0,0.1194253]
[1744798247482,0.00017914,83742.0,83741.0,0.2994253]
[1744798247677,0.00017914,83742.0,83741.0,0.3611253]
[1744798247882,0.00025914,83742.0,83741.0,0.3611253]
[1744798248287,0.11968304,83742.0,83741.0,0.3611253]
[1744798248588,0.00025914,83742.0,83741.0,0.3611253]
[1744798248771,0.06665914,83742.0,83741.0,0.3611253]
[1744798248973,0.06865914,83742.0,83741.0,0.3611253]
[1744798249173,0.18808304,83742.0,83741.0,0.3611253]
[1744798251469,0.18808304,83742.0,83741.0,0.3294253]
[1744798251783,0.18808304,83742.0,83741.0,0.2894253]
[1744798258778,0.1194325,83736.0,83735.0,0.1195131]
[1744798259081,0.1194325,83736.0,83735.0,0.1194331]
[1744798259395,0.2152325,83736.0,83735.0,0.1195131]
[1744798259982,0.2152325,83736.0,83735.0,0.1495131]
[1744798260277,0.0318,83736.0,83735.0,0.1495131]
[1744798260582,0.0318,83736.0,83735.0,0.1695131]
[1744798260982,0.03188,83736.0,83735.0,0.1695131]
[1744798261172,0.03288,83736.0,83735.0,0.1695131]
[1744798261373,0.00108,83736.0,83735.0,0.1695131]
[1744798261585,0.001,83736.0,83735.0,0.1695131]
[1744798261980,0.00108,83736.0,83735.0,0.1695131]
[1744798265073,0.0321,83739.0,83738.0,0.1194296]
[1744798265272,0.0321,83739.0,83738.0,0.6402296]
[1744798265482,0.0321,83739.0,83738.0,0.7047296]
[1744798266982,0.0321,83739.0,83738.0,0.71686473]
[1744798267186,0.0321,83739.0,83738.0,0.7047296]
[1744798267781,0.0662,83739.0,83738.0,0.7047296]
[1744798267980,0.0662,83739.0,83738.0,0.6724296]
[1744798274976,0.1856282,83739.0,83738.0,0.6724296]
[1744798275288,0.1856282,83739.0,83738.0,0.6402296]
[1744798275986,0.0662,83739.0,83738.0,0.6716296]
[1744798276378,0.1856282,83739.0,83738.0,0.6716296]
[1744798277391,0.0662,83739.0,83738.0,0.6716296]
[1744798277579,0.0331,83739.0,83738.0,0.7026296]
[1744798280886,0.0659,83739.0,83738.0,0.7026296]
[1744798281589,0.1853282,83739.0,83738.0,0.7026296]
[1744798281794,0.0977,83739.0,83738.0,0.6716296]
[1744798281990,0.0659,83739.0,83738.0,0.6716296]
[1744798282680,0.0659,83739.0,83738.0,0.7035296]
[1744798283585,0.0659,83739.0,83738.0,0.6716296]
[1744798283785,0.1853282,83739.0,83738.0,0.6716296]
[1744798283980,0.0659,83739.0,83738.0,0.6716296]
[1744798285293,0.0331,83739.0,83738.0,0.6716296]
[1744798285490,0.0331,83739.0,83738.0,0.7039296]
[1744798285692,0.0643,83739.0,83738.0,0.7039296]
[1744798286298,0.0643,83739.0,83738.0,0.6716296]
[1744798286796,0.0643,83739.0,83738.0,0.6302296]
[1744798287802,0.1837282,83739.0,83738.0,0.6302296]
[1744798291696,0.0643,83739.0,83738.0,0.6302296]
[1744798291900,0.0643,83739.0,83738.0,0.6629296]
[1744798292096,0.1837282,83739.0,83738.0,0.6629296]
[1744798293093,0.0643,83739.0,83738.0,0.6932296]
[1744798293590,0.0643,83739.0,83738.0,0.7709496]
[1744798293995,0.06438,83739.0,83738.0,0.7709496]
[1744798294791,0.0643,83739.0,83738.0,0.7709496]
[1744798295204,0.06438,83739.0,83738.0,0.7709496]
[1744798296089,0.03318,83739.0,83738.0,0.7809496]
[1744798296696,0.0333,83750.0,83738.0,0.66152]
[1744798296897,0.00035873,83754.0,83753.0,0.1791122]
[1744798297100,0.0333,83759.0,83758.0,0.1194011]
[1744798297495,0.0333,83759.0,83758.0,0.1526011]
[1744798297896,0.005,83760.0,83759.0,0.1193997]
[1744798298092,0.005,83760.0,83759.0,0.1601997]
[1744798298304,0.00508,83760.0,83759.0,0.2019997]
[1744798300102,0.005,83760.0,83759.0,0.2019997]
[1744798300401,0.01008,83760.0,83759.0,0.2019997]
[1744798301394,0.1294782,83760.0,83759.0,0.2019997]
[1744798301601,0.1294782,83760.0,83759.0,0.17001563]
[1744798301907,0.2242782,83760.0,83759.0,0.17001563]
[1744798308007,0.10488,83760.0,83759.0,0.17001563]
[1744798308211,0.2242782,83760.0,83759.0,0.20211563]
[1744798308604,0.2241982,83760.0,83759.0,0.20211563]
[1744798308909,0.2242782,83760.0,83759.0,0.20211563]
[1744798311502,0.2242782,83760.0,83759.0,0.17001563]
[1744798312103,0.10488,83760.0,83759.0,0.17001563]
[1744798312399,0.10488,83760.0,83759.0,0.20111563]
[1744798313709,0.2242782,83760.0,83759.0,0.20111563]
[1744798315311,0.10488,83760.0,83759.0,0.20111563]
[1744798316415,0.04238,83760.0,83759.0,0.20111563]
[1744798316719,0.01,83760.0,83759.0,0.20111563]
[1744798316910,0.01008,83760.0,83759.0,0.20111563]
[1744798317410,0.01008,83760.0,83759.0,0.21111563]
[1744798317614,0.01,83760.0,83759.0,0.21111563]
[1744798317812,0.01008,83760.0,83759.0,0.21111563]
[1744798318714,0.00032495,83767.0,83766.0,0.1193897]
[1744798319017,0.00032495,83767.0,83766.0,0.8240697]
[1744798319314,0.00025914,83767.0,83766.0,0.8240697]
[1744798319709,0.00017914,83767.0,83766.0,0.7913697]
[1744798319903,0.00025914,83767.0,83766.0,0.7813697]
[1744798320315,0.00025914,83767.0,83766.0,0.4801897]
[1744798320515,0.00225914,83767.0,83766.0,0.4801897]
[1744798320719,0.00225914,83767.0,83766.0,0.5218897]
[1744798320914,0.00225914,83767.0,83766.0,0.5851897]
[1744798322620,0.00225914,83767.0,83766.0,0.5218897]
[1744798323119,0.00019684,83780.0,83772.0,0.1193811]
[1744798323323,0.00019684,83780.0,83772.0,0.4413611]
[1744798323722,0.0328,83781.0,83780.0,0.1193697]
[1744798324019,0.0328,83781.0,83780.0,0.6501697]
[1744798324223,0.0328,83781.0,83780.0,0.7473697]
[1744798324909,0.03288,83781.0,83780.0,0.7473697]
[1744798326226,0.03388,83781.0,83780.0,0.7473697]
[1744798327020,0.1193783,83777.0,83776.0,0.1193701]
[1744798327323,0.1193797,83773.0,83772.0,0.05986944]
[1744798327525,0.4801797,83773.0,83772.0,0.05986944]
[1744798327823,0.5744797,83773.0,83772.0,0.00017914]
[1744798328131,0.179082,83770.0,83769.0,0.1193811]
[1744798328926,0.19101583,83770.0,83769.0,0.1193811]
[1744798329228,0.179082,83770.0,83769.0,0.1193811]
[1744798331925,0.19108284,83770.0,83769.0,0.1193811]
[1744798335427,0.179082,83770.0,83769.0,0.1193811]
[1744798338420,0.19135052,83770.0,83769.0,0.1499811]
[1744798339029,0.19135052,83770.0,83769.0,0.1193811]
[1744798341332,0.1193954,83762.0,83761.0,0.00017914]
[1744798342144,0.1830954,83762.0,83761.0,0.00017914]
[1744798342932,0.1194068,83754.0,83753.0,8e-05]
[1744798343127,0.4802068,83754.0,83753.0,0.08]
[1744798343428,0.4802068,83754.0,83753.0,0.1994882]
[1744798343628,0.5747068,83754.0,83753.0,0.1994882]
[1744798343929,0.00017914,83770.0,83769.0,0.1193854]
[1744798344124,0.00017914,83770.0,83769.0,0.3298854]
[1744798344331,0.00025914,83770.0,83769.0,0.3924854]
[1744798354432,0.00025914,83770.0,83769.0,0.2124854]
[1744798355634,0.00025914,83770.0,83769.0,0.2224854]
[1744798356328,0.00025914,83770.0,83769.0,0.2324854]
[1744798356631,0.00017914,83770.0,83769.0,0.2324854]
[1744798357525,0.00025914,83770.0,83769.0,0.2324854]
[1744798358127,0.00025914,83770.0,83769.0,0.5932854]
[1744798358528,0.00025914,83770.0,83769.0,0.5832854]
[1744798359131,0.00025914,83770.0,83769.0,0.2224854]
[1744798359327,0.00025914,83770.0,83769.0,0.5832854]
[1744798360435,0.00025914,83770.0,83769.0,0.2224854]
[1744798360932,0.00025914,83770.0,83769.0,0.5832854]
[1744798363141,0.00025914,83770.0,83769.0,0.5932854]